bitfinex/quotes_BTCUSD_20230111
["timestamp","ask_amount","ask_price","bid_price","bid_amount"]
[1673438815496,3.7808665,17436.0,17435.0,0.00841848]
[1673438816259,3.4808665,17436.0,17435.0,0.00841848]
[1673438818438,3.27615985,17436.0,17435.0,0.00813003]
[1673438819192,4.09070978,17436.0,17435.0,0.00813003]
[1673438819498,3.57615985,17436.0,17435.0,0.00813003]
[1673438819746,3.27615985,17436.0,17435.0,0.00813003]
[1673438820731,3.27615985,17436.0,17435.0,0.00543671]
[1673438822553,3.8637352,17436.0,17435.0,0.00543671]
[1673438823077,4.0272352,17436.0,17435.0,0.00543671]
[1673438823890,4.13536652,17436.0,17435.0,0.00543671]
[1673438824432,4.56479442,17436.0,17435.0,0.00543671]
[1673438824645,4.15177319,17436.0,17435.0,0.00543671]
[1673438824902,3.12049967,17436.0,17435.0,0.00543671]
[1673438825156,2.58971638,17436.0,17435.0,0.00543671]
[1673438825673,2.01619038,17436.0,17435.0,0.00543671]
[1673438828217,1.32048371,17436.0,17435.0,0.00543671]
[1673438828462,1.94509952,17436.0,17435.0,0.00543671]
[1673438828713,2.48283993,17436.0,17435.0,0.00543671]
[1673438828982,2.8418202,17436.0,17435.0,0.00543671]
[1673438830022,3.4153462,17436.0,17435.0,0.00543671]
[1673438830297,3.0563422,17436.0,17435.0,0.00543671]
[1673438830553,3.05632407,17436.0,17435.0,0.00543671]
[1673438830815,3.05627339,17436.0,17435.0,0.00543671]
[1673438831071,3.41527739,17436.0,17435.0,0.00543671]
[1673438831347,3.04940881,17436.0,17435.0,0.00543671]
[1673438831641,2.11687881,17436.0,17435.0,0.00543671]
[1673438831905,2.47588281,17436.0,17435.0,0.00543671]
[1673438832725,2.50420821,17436.0,17435.0,0.00543671]
[1673438832994,2.67596516,17436.0,17435.0,0.00543671]
[1673438833506,2.50419749,17436.0,17435.0,0.00543671]
[1673438834016,3.04162716,17436.0,17435.0,0.00543671]
[1673438834284,3.37012525,17436.0,17435.0,0.00543671]
[1673438834528,2.86985178,17436.0,17435.0,0.00543671]
[1673438835032,2.50420661,17436.0,17435.0,0.00543671]
[1673438837102,2.31696401,17436.0,17435.0,0.00543671]
[1673438837352,1.97339796,17436.0,17435.0,0.00543671]
[1673438838381,2.33240196,17436.0,17435.0,0.00543671]
[1673438840205,2.50420661,17436.0,17435.0,0.00543671]
[1673438840471,2.33239259,17436.0,17435.0,0.00543671]
[1673438841515,2.33238309,17436.0,17435.0,0.00543671]
[1673438842805,2.50420661,17436.0,17435.0,0.00543671]
[1673438843322,2.8700376,17436.0,17435.0,0.00543671]
[1673438843584,2.50420661,17436.0,17435.0,0.00543671]
[1673438843825,2.8700376,17436.0,17435.0,0.00543671]
[1673438844589,2.33238935,17436.0,17435.0,0.00543671]
[1673438844845,2.33917476,17436.0,17435.0,0.00543671]
[1673438845101,2.69817876,17436.0,17435.0,0.00543671]
[1673438845350,2.86999602,17436.0,17435.0,0.00543671]
[1673438845595,3.04174053,17436.0,17435.0,0.00543671]
[1673438845864,2.69817448,17436.0,17435.0,0.00543671]
[1673438846370,2.86999602,17436.0,17435.0,0.00543671]
[1673438846618,3.04174225,17436.0,17435.0,0.00543671]
[1673438846867,2.6981762,17436.0,17435.0,0.00543671]
[1673438849407,2.86999602,17436.0,17435.0,0.00543671]
[1673438850429,3.61528057,17436.0,17435.0,0.00543671]
[1673438850671,3.94270309,17436.0,17435.0,0.00543671]
[1673438850931,3.61528057,17436.0,17435.0,0.00543671]
[1673438851189,3.87287627,17436.0,17435.0,0.00543671]
[1673438851443,3.44345996,17436.0,17435.0,0.00543671]
[1673438851702,3.04190884,17436.0,17435.0,0.00543671]
[1673438851956,2.87016626,17436.0,17435.0,0.00543671]
[1673438852210,3.44369226,17436.0,17435.0,0.00543671]
[1673438852467,2.87016626,17436.0,17435.0,0.00543671]
[1673438852721,3.61551287,17436.0,17435.0,0.00543671]
[1673438852981,3.77971287,17436.0,17435.0,0.00543671]
[1673438853741,4.03731937,17436.0,17435.0,0.00543671]
[1673438853993,3.60789147,17436.0,17435.0,0.00543671]
[1673438854267,3.03436547,17436.0,17435.0,0.00543671]
[1673438854817,3.20618687,17436.0,17435.0,0.00543671]
[1673438855054,3.46382254,17436.0,17435.0,0.00543671]
[1673438855352,3.20618687,17436.0,17435.0,0.00543671]
[1673438855571,3.53530704,17436.0,17435.0,0.00543671]
[1673438855849,3.20618687,17436.0,17435.0,0.00543671]
[1673438856120,3.5353057,17436.0,17435.0,0.00543671]
[1673438856368,4.00425167,17436.0,17435.0,0.00543671]
[1673438856655,4.1088317,17436.0,17435.0,0.00543671]
[1673438856919,3.76526565,17436.0,17435.0,0.00543671]
[1673438857722,4.10882853,17436.0,17435.0,0.00543671]
[1673438857937,3.76526565,17436.0,17435.0,0.00543671]
[1673438860339,4.10888407,17436.0,17435.0,0.00543671]
[1673438862929,3.76526565,17436.0,17435.0,0.00543671]
[1673438866070,3.53548563,17436.0,17435.0,0.00543671]
[1673438867345,3.19173965,17436.0,17435.0,0.00543671]
[1673438867599,3.76526565,17436.0,17435.0,0.00543671]
[1673438872265,3.75676565,17436.0,17435.0,0.00543671]
[1673438875007,3.75676565,17436.0,17435.0,0.00274339]
[1673438878823,3.73446422,17436.0,17435.0,0.00274339]
[1673438879575,3.40534539,17436.0,17435.0,0.00274339]
[1673438879830,2.83181939,17436.0,17435.0,0.00274339]
[1673438880094,3.40534539,17436.0,17435.0,0.00274339]
[1673438880355,3.26207491,17436.0,17435.0,0.00274339]
[1673438880610,3.51988051,17436.0,17435.0,0.00274339]
[1673438880859,3.26207491,17436.0,17435.0,0.00274339]
[1673438881182,3.83560091,17436.0,17435.0,0.00274339]
[1673438881369,4.16685078,17436.0,17435.0,0.00274339]
[1673438881678,4.16685093,17436.0,17435.0,0.00274339]
[1673438882683,3.83560091,17436.0,17435.0,0.00274339]
[1673438883198,2.30120766,17436.0,17435.0,0.00274339]
[1673438883446,2.73055548,17436.0,17435.0,0.00274339]
[1673438883729,2.73146318,17436.0,17435.0,0.00274339]
[1673438884005,0.91024531,17435.0,17433.0,0.88856761]
[1673438884262,1.51195071,17435.0,17434.0,1.14754181]
[1673438884512,0.91024531,17435.0,17433.0,0.88856761]
[1673438884763,0.91024531,17435.0,17434.0,1.14754288]
[1673438885030,0.91024531,17435.0,17433.0,0.88856761]
[1673438885553,0.92024531,17435.0,17434.0,1.15654378]
[1673438885813,0.92024531,17435.0,17434.0,1.15654181]
[1673438886074,0.61024531,17435.0,17434.0,1.14754181]
[1673438886354,0.61024531,17435.0,17433.0,0.88856761]
[1673438886857,1.03045262,17435.0,17433.0,0.88856761]
[1673438887145,1.2023226,17435.0,17433.0,0.88856761]
[1673438887909,1.17067733,17435.0,17433.0,0.63101103]
[1673438888160,1.18667733,17435.0,17433.0,0.64101103]
[1673438889179,1.18667733,17435.0,17433.0,0.89856761]
[1673438889449,1.18667733,17435.0,17433.0,0.64101103]
[1673438889676,1.18667733,17435.0,17433.0,0.89856761]
[1673438890438,1.18667733,17435.0,17433.0,0.64101103]
[1673438891774,1.18483878,17435.0,17433.0,0.89856761]
[1673438892550,1.18483878,17435.0,17433.0,0.64101103]
[1673438895410,0.55389992,17434.0,17433.0,0.64101103]
[1673438895660,0.85389992,17434.0,17433.0,1.78860032]
[1673438896164,0.85389992,17434.0,17433.0,1.15758929]
[1673438896789,0.55389992,17434.0,17433.0,1.32951271]
[1673438897220,0.55389992,17434.0,17433.0,1.31951271]
[1673438897717,0.56989992,17434.0,17433.0,1.32951271]
[1673438899462,0.56989992,17434.0,17433.0,0.01]
[1673438899711,0.86989992,17434.0,17433.0,0.01]
[1673438900662,0.86989992,17434.0,17433.0,0.005]
[1673438901162,0.86989992,17434.0,17433.0,1.15260009]
[1673438901662,0.56989992,17434.0,17433.0,1.15260009]
[1673438904157,0.56989992,17434.0,17433.0,0.005]
[1673438904404,0.56989992,17434.0,17433.0,1.15259736]
[1673438904654,0.56989992,17434.0,17433.0,1.32452078]
[1673438908172,1.16001273,17434.0,17433.0,0.005]
[1673438908689,1.18773902,17434.0,17433.0,0.005]
[1673438909742,0.6338391,17434.0,17433.0,0.005]
[1673438910003,2.39147096,17434.0,17433.0,0.005]
[1673438910245,2.73519124,17434.0,17433.0,0.005]
[1673438910501,3.30871184,17434.0,17433.0,0.00230668]
[1673438910745,2.96499156,17434.0,17433.0,0.00230668]
[1673438911280,2.60600588,17434.0,17433.0,0.00230668]
[1673438917070,2.34818571,17434.0,17433.0,0.00230668]
[1673438918894,2.17636781,17434.0,17433.0,0.00230668]
[1673438920431,1.75812498,17434.0,17433.0,0.00230668]
[1673438920919,2.17644619,17434.0,17433.0,0.00230668]
[1673438921163,1.75812498,17434.0,17433.0,0.00230668]
[1673438922430,2.17644318,17434.0,17433.0,0.00230668]
[1673438922942,1.75812498,17434.0,17433.0,0.00230668]
[1673438923198,1.18453398,17434.0,17433.0,0.00230668]
[1673438924497,0.91094298,17434.0,17433.0,0.00230668]
[1673438925249,0.61094298,17434.0,17433.0,0.00230668]
[1673438925753,0.91094298,17434.0,17433.0,0.00230668]
[1673438926753,1.32927866,17434.0,17433.0,0.00230668]
[1673438927102,1.32924734,17434.0,17433.0,0.00230668]
[1673438927274,1.90283834,17434.0,17433.0,0.00230668]
[1673438930384,1.18453398,17434.0,17433.0,0.00230668]
[1673438930892,1.60284543,17434.0,17433.0,0.00230668]
[1673438934420,1.60281798,17434.0,17433.0,0.00230668]
[1673438937461,2.06143588,17434.0,17433.0,0.00230668]
[1673438937972,2.31925605,17434.0,17433.0,0.00230668]
[1673438938961,0.3,17434.0,17433.0,0.00230668]
[1673438939467,0.873591,17434.0,17433.0,0.00230668]
[1673438940233,1.02804746,17434.0,17433.0,0.00230668]
[1673438944228,0.873591,17434.0,17433.0,0.00230668]
[1673438945511,1.21865149,17434.0,17433.0,0.00230668]
[1673438948048,1.47634151,17434.0,17433.0,0.00230668]
[1673438949322,1.81994356,17434.0,17433.0,0.00230668]
[1673438949583,1.64814451,17434.0,17433.0,0.00230668]
[1673438949887,1.81994356,17434.0,17433.0,0.00230668]
[1673438950088,1.64814874,17434.0,17433.0,0.00230668]
[1673438951141,1.64814874,17434.0,17433.0,0.75683374]
[1673438951959,3.09392653,17434.0,17433.0,0.75683374]
[1673438952206,3.62466841,17434.0,17433.0,0.75683374]
[1673438952493,3.89795991,17434.0,17433.0,0.75683374]
[1673438954081,3.8956232,17434.0,17433.0,0.75683374]
[1673438954343,3.88233004,17434.0,17433.0,0.75683374]
[1673438954596,3.45289772,17434.0,17433.0,0.75683374]
[1673438956419,3.45288346,17434.0,17433.0,0.75683374]
[1673438958742,3.45288346,17434.0,17433.0,0.75683374]
[1673438959016,3.62466841,17434.0,17433.0,0.75683374]
[1673438959268,3.89662126,17434.0,17433.0,0.75683374]
[1673438959516,3.01682724,17434.0,17433.0,0.75683374]
[1673438959773,3.05129934,17434.0,17433.0,0.75683374]
[1673438960028,2.75979934,17434.0,17433.0,0.75683374]
[1673438961330,3.11717502,17434.0,17433.0,0.75683374]
[1673438963676,3.11717502,17434.0,17433.0,0.75674427]
[1673438964199,3.54602514,17434.0,17433.0,0.75674427]
[1673438964751,3.64703034,17434.0,17433.0,0.75674427]
[1673438964988,3.30255955,17434.0,17433.0,0.75674427]
[1673438965233,3.13101024,17434.0,17433.0,0.75674427]
[1673438965532,3.47710112,17434.0,17433.0,0.75674427]
[1673438966489,3.82020659,17434.0,17433.0,0.75674427]
[1673438967012,3.47710112,17434.0,17433.0,0.75674427]
[1673438968540,3.64865043,17434.0,17433.0,0.75674427]
[1673438968798,3.12253488,17434.0,17433.0,0.75674427]
[1673438969370,3.46869858,17434.0,17433.0,0.75674427]
[1673438969621,2.70100578,17434.0,17433.0,0.75674427]
[1673438970127,2.95833488,17434.0,17433.0,0.75674427]
[1673438970390,2.12741478,17434.0,17433.0,0.75674427]
[1673438971394,1.59682998,17434.0,17433.0,0.75674427]
[1673438971642,2.12741478,17434.0,17433.0,0.75674427]
[1673438973491,1.76841078,17434.0,17433.0,0.75674427]
[1673438973771,1.29682998,17434.0,17433.0,0.75674427]
[1673438973994,1.46841078,17434.0,17433.0,0.75674427]
[1673438974249,1.29682998,17434.0,17433.0,0.75674427]
[1673438976991,0.72323898,17434.0,17433.0,0.75674427]
[1673438978998,0.1639,17434.0,17433.0,0.75674427]
[1673438979271,0.1715808,17435.0,17433.0,1.51091186]
[1673438979594,0.95454479,17436.0,17434.0,0.359004]
[1673438979793,0.82563489,17436.0,17435.0,0.359004]
[1673438980045,0.82563489,17436.0,17433.0,1.68283528]
[1673438980578,0.82563489,17436.0,17433.0,1.68061807]
[1673438980886,0.016,17435.0,17433.0,1.69761807]
[1673438981141,0.61230087,17435.0,17433.0,1.69761807]
[1673438981429,0.61230087,17435.0,17433.0,1.52569465]
[1673438981688,0.59630087,17435.0,17433.0,1.52569465]
[1673438981941,0.59630087,17435.0,17433.0,1.50869465]
[1673438982209,0.61230087,17435.0,17433.0,1.52569465]
[1673438982724,0.61230087,17435.0,17434.0,0.5590764]
[1673438983525,0.59630087,17435.0,17434.0,0.5590764]
[1673438983785,0.60630087,17435.0,17434.0,0.5760764]
[1673438987062,0.0099338,17435.0,17434.0,0.5760764]
[1673438991295,0.0099338,17435.0,17434.0,0.57708138]
[1673438995144,0.24761169,17435.0,17434.0,0.017]
[1673438995390,0.56392096,17435.0,17434.0,0.017]
[1673438995642,0.92292496,17435.0,17434.0,0.017]
[1673438995892,1.22292496,17435.0,17434.0,0.017]
[1673438996714,1.66305078,17435.0,17434.0,0.017]
[1673438996940,2.23660878,17435.0,17434.0,0.017]
[1673438997712,2.81016678,17435.0,17434.0,0.01430668]
[1673439000956,2.98174758,17435.0,17434.0,0.01430668]
[1673439002467,3.23907668,17435.0,17434.0,0.01430668]
[1673439002719,2.98174758,17435.0,17434.0,0.01430668]
[1673439003726,3.23907668,17435.0,17434.0,0.01430668]
[1673439003979,3.02819499,17435.0,17434.0,0.01430668]
[1673439004303,4.05574559,17435.0,17434.0,0.01430668]
[1673439004513,3.35453341,17435.0,17434.0,0.01430668]
[1673439004761,3.90133655,17435.0,17434.0,0.01430668]
[1673439005071,3.84396087,17435.0,17434.0,0.01430668]
[1673439005266,3.90133655,17435.0,17434.0,0.01430668]
[1673439005520,3.63231403,17435.0,17434.0,0.01430668]
[1673439006056,3.46088207,17435.0,17434.0,0.01430668]
[1673439006313,3.63231403,17435.0,17434.0,0.01430668]
[1673439007074,3.46090189,17435.0,17434.0,0.01430668]
[1673439007890,3.40352621,17435.0,17434.0,0.01430668]
[1673439009559,3.57493835,17435.0,17434.0,0.01430668]
[1673439010340,3.40358983,17435.0,17434.0,0.01430668]
[1673439012957,3.56778983,17435.0,17434.0,0.01430668]
[1673439015571,3.39635291,17435.0,17434.0,0.01430668]
[1673439015822,3.73945838,17435.0,17434.0,0.01430668]
[1673439016074,3.39635291,17435.0,17434.0,0.01430668]
[1673439027901,3.23215291,17435.0,17434.0,0.01430668]
[1673439028159,3.39615291,17435.0,17434.0,0.01430668]
[1673439029151,3.73925838,17435.0,17434.0,0.01430668]
[1673439029433,3.56758983,17435.0,17434.0,0.01430668]
[1673439031454,3.40358983,17435.0,17434.0,0.01430668]
[1673439031696,3.56778983,17435.0,17434.0,0.01430668]
[1673439033246,3.56778983,17435.0,17434.0,0.01421345]
[1673439037700,3.73913835,17435.0,17434.0,0.01421345]
[1673439037943,3.99701358,17435.0,17434.0,0.01421345]
[1673439038224,3.73913835,17435.0,17434.0,0.01421345]
[1673439038480,3.56816975,17435.0,17434.0,0.01421345]
[1673439041462,3.73913835,17435.0,17434.0,0.01421345]
[1673439042237,4.00586652,17435.0,17434.0,0.01421345]
[1673439043007,3.84166652,17435.0,17434.0,0.01421345]
[1673439045791,3.49856105,17435.0,17434.0,0.01421345]
[1673439048056,3.84245579,17435.0,17434.0,0.01421345]
[1673439048319,2.69533979,17435.0,17434.0,0.01421345]
[1673439048556,3.84245579,17435.0,17434.0,0.01421345]
[1673439051322,2.0321504,17435.0,17434.0,0.01421345]
[1673439052305,2.20413013,17435.0,17434.0,0.01421345]
[1673439052575,2.0321504,17435.0,17434.0,0.01421345]
[1673439052825,2.3911544,17435.0,17434.0,0.01421345]
[1673439053071,1.86022086,17435.0,17434.0,0.01421345]
[1673439054599,2.0321504,17435.0,17434.0,0.01421345]
[1673439056100,1.86022117,17435.0,17434.0,0.01421345]
[1673439056370,2.0321504,17435.0,17434.0,0.01421345]
[1673439057125,2.20413811,17435.0,17434.0,0.01421345]
[1673439057351,1.86024337,17435.0,17434.0,0.01421345]
[1673439057898,2.20414409,17435.0,17434.0,0.01421345]
[1673439058116,1.56024935,17435.0,17434.0,0.01421345]
[1673439058512,1.90414409,17435.0,17434.0,0.01421345]
[1673439058768,1.56024935,17435.0,17434.0,0.01421345]
[1673439060377,1.7321504,17435.0,17434.0,0.01421345]
[1673439060658,1.56024331,17435.0,17434.0,0.01421345]
[1673439062733,0.43988217,17435.0,17434.0,0.63336137]
[1673439063004,0.18192145,17435.0,17434.0,0.63336137]
[1673439064846,0.0099338,17435.0,17434.0,0.63336137]
[1673439066213,0.0099338,17435.0,17434.0,1.95281616]
[1673439066489,0.0099338,17435.0,17434.0,0.80528479]
[1673439066744,0.0099338,17435.0,17434.0,1.95279484]
[1673439068864,0.0099338,17435.0,17434.0,0.80528479]
[1673439069639,0.0099338,17435.0,17434.0,0.63336137]
[1673439070938,0.0099338,17435.0,17434.0,0.80528479]
[1673439071712,0.0099338,17435.0,17434.0,0.63336137]
[1673439073008,0.0099338,17435.0,17434.0,0.80528479]
[1673439073519,0.0099338,17435.0,17434.0,1.9527695]
[1673439074032,0.00981554,17435.0,17434.0,1.9527695]
[1673439074311,0.00981554,17435.0,17434.0,2.3117735]
[1673439074778,0.00981554,17435.0,17434.0,1.9527695]
[1673439075784,0.00981554,17435.0,17434.0,0.80528479]
[1673439076282,0.00981554,17435.0,17434.0,0.63336137]
[1673439090717,0.00981554,17435.0,17434.0,0.80528479]
[1673439091807,0.00981554,17435.0,17434.0,1.95280242]
[1673439092040,0.00981554,17435.0,17434.0,0.80528479]
[1673439092290,0.00981554,17435.0,17434.0,1.9528022]
[1673439092554,0.00981554,17435.0,17434.0,0.80528479]
[1673439092799,0.00981554,17435.0,17434.0,1.9528006]
[1673439094598,0.00481554,17435.0,17434.0,1.9528006]
[1673439096826,0.00481554,17435.0,17434.0,2.21035718]
[1673439097329,0.00481554,17435.0,17434.0,1.9528006]
[1673439097585,0.00481554,17435.0,17434.0,2.21035718]
[1673439098865,0.00481554,17435.0,17434.0,2.78612149]
[1673439099124,0.00481554,17435.0,17434.0,2.21035718]
[1673439099651,0.00481554,17435.0,17434.0,1.9528006]
[1673439100147,0.00481554,17435.0,17434.0,1.95380796]
[1673439102433,0.00481554,17435.0,17434.0,1.9528006]
[1673439104021,0.00481554,17435.0,17434.0,2.21035718]
[1673439104278,0.00481554,17435.0,17434.0,1.9528006]
[1673439105111,0.00481554,17435.0,17434.0,2.21035718]
[1673439106443,0.17680319,17435.0,17434.0,2.21035718]
[1673439106709,0.00481554,17435.0,17434.0,2.21035718]
[1673439106973,0.00481554,17435.0,17434.0,2.78580044]
[1673439108075,0.00481554,17435.0,17434.0,2.21035718]
[1673439108329,0.17680319,17435.0,17434.0,2.21035718]
[1673439108642,0.27680319,17435.0,17434.0,1.95279964]
[1673439108890,0.886556,17435.0,17434.0,1.33365172]
[1673439109143,1.14451672,17435.0,17434.0,1.1617822]
[1673439109384,1.14451672,17435.0,17434.0,1.33370562]
[1673439109629,0.886556,17435.0,17434.0,0.01421249]
[1673439109899,1.186556,17435.0,17434.0,0.01421249]
[1673439110388,0.886556,17435.0,17434.0,0.01421249]
[1673439110651,0.886556,17435.0,17434.0,0.18613591]
[1673439110904,0.886556,17435.0,17434.0,0.01421249]
[1673439111120,0.886556,17435.0,17434.0,1.33369942]
[1673439111363,1.32668182,17435.0,17434.0,1.161776]
[1673439111610,1.32668182,17435.0,17434.0,0.01421249]
[1673439111611,1.74824254,17435.0,17434.0,0.01421249]
[1673439111867,2.10724654,17435.0,17434.0,0.01421249]
[1673439114762,1.74824254,17435.0,17434.0,0.01421249]
[1673439115285,2.10724654,17435.0,17434.0,0.01421249]
[1673439115536,3.25436254,17435.0,17434.0,0.01421249]
[1673439115791,3.42626963,17435.0,17434.0,0.01421249]
[1673439123506,3.59715903,17435.0,17434.0,0.01421249]
[1673439123758,3.85490182,17435.0,17434.0,0.01421249]
[1673439124010,3.59715903,17435.0,17434.0,0.01421249]
[1673439124260,3.42600442,17435.0,17434.0,0.01421249]
[1673439130710,3.59771316,17435.0,17434.0,0.01421249]
[1673439131214,3.59770969,17435.0,17434.0,0.01421249]
[1673439131469,3.42600442,17435.0,17434.0,0.01421249]
[1673439134239,3.59715903,17435.0,17434.0,0.01421249]
[1673439134493,3.2894634,17435.0,17434.0,0.01414207]
[1673439134752,3.28946246,17435.0,17434.0,0.01414207]
[1673439135507,3.99720942,17435.0,17434.0,0.01414207]
[1673439139064,3.72793386,17435.0,17434.0,0.01414207]
[1673439139554,3.99642461,17435.0,17434.0,0.01414207]
[1673439139805,3.72793386,17435.0,17434.0,0.01414207]
[1673439140048,3.99642431,17435.0,17434.0,0.01414207]
[1673439142287,3.65306575,17435.0,17434.0,0.01414207]
[1673439142528,3.99646999,17435.0,17434.0,0.01414207]
[1673439143066,4.16066999,17435.0,17434.0,0.01414207]
[1673439143328,4.16067284,17435.0,17434.0,0.01414207]
[1673439146185,3.81726575,17435.0,17434.0,0.01414207]
[1673439146437,4.1607544,17435.0,17434.0,0.01414207]
[1673439146687,4.16075179,17435.0,17434.0,0.01414207]
[1673439146984,3.81726575,17435.0,17434.0,0.01414207]
[1673439147460,4.16074914,17435.0,17434.0,0.01414207]
[1673439147763,3.81726575,17435.0,17434.0,0.01414207]
[1673439150356,4.16088581,17435.0,17434.0,0.01414207]
[1673439150598,3.81726575,17435.0,17434.0,0.01414207]
[1673439151417,2.68066867,17435.0,17434.0,0.01414207]
[1673439151680,3.29908437,17435.0,17434.0,0.01414207]
[1673439152683,2.68066867,17435.0,17434.0,0.01414207]
[1673439152945,2.80324867,17435.0,17434.0,0.01414207]
[1673439153973,3.51919147,17435.0,17434.0,0.01414207]
[1673439156038,3.51919147,17435.0,17434.0,0.01407374]
[1673439157282,4.0337414,17435.0,17434.0,0.01407374]
[1673439157541,3.51919147,17435.0,17434.0,0.01407374]
[1673439158052,4.0337414,17435.0,17434.0,0.01407374]
[1673439158305,3.51919147,17435.0,17434.0,0.01407374]
[1673439160700,3.23241147,17435.0,17434.0,0.01407374]
[1673439161214,3.66204351,17435.0,17434.0,0.01407374]
[1673439162275,3.23241147,17435.0,17434.0,0.01407374]
[1673439163037,3.39591147,17435.0,17434.0,0.01407374]
[1673439165912,3.23241147,17435.0,17434.0,0.01407374]
[1673439168646,2.79228565,17435.0,17434.0,0.01407374]
[1673439169160,3.30683558,17435.0,17434.0,0.01407374]
[1673439169927,3.59361558,17435.0,17434.0,0.01407374]
[1673439170479,3.07906565,17435.0,17434.0,0.01407374]
[1673439170973,3.59361558,17435.0,17434.0,0.01407374]
[1673439173127,2.87767278,17435.0,17434.0,0.01407374]
[1673439173990,2.97157883,17435.0,17434.0,0.01407374]
[1673439175047,2.68479883,17435.0,17434.0,0.01407374]
[1673439175289,2.87767278,17435.0,17434.0,0.01407374]
[1673439176301,3.40687676,17435.0,17434.0,0.01407374]
[1673439177897,2.87767278,17435.0,17434.0,0.01407374]
[1673439178142,3.41040884,17435.0,17434.0,0.01407374]
[1673439178565,2.87767278,17435.0,17434.0,0.01407374]
[1673439178814,3.74495206,17435.0,17434.0,0.01407374]
[1673439179126,4.40070049,17435.0,17434.0,0.01407374]
[1673439179388,3.44495206,17435.0,17434.0,0.01407374]
[1673439179640,3.97844824,17435.0,17434.0,0.01407374]
[1673439179891,3.45817206,17435.0,17434.0,0.01407374]
[1673439180153,4.39369083,17435.0,17434.0,0.01398036]
[1673439180412,3.17768278,17435.0,17434.0,0.01398036]
[1673439180670,3.83992613,17435.0,17434.0,0.01398036]
[1673439180916,3.18618278,17435.0,17434.0,0.01398036]
[1673439181175,3.50427588,17435.0,17434.0,0.01398036]
[1673439183507,3.50426588,17435.0,17434.0,0.01398036]
[1673439184279,2.88617278,17435.0,17434.0,0.01398036]
[1673439184534,3.80074297,17435.0,17434.0,0.01398036]
[1673439184784,2.88617278,17435.0,17434.0,0.01398036]
[1673439185044,3.55490471,17435.0,17434.0,0.01398036]
[1673439186925,3.56812471,17435.0,17434.0,0.01398036]
[1673439187201,3.85491471,17435.0,17434.0,0.01398036]
[1673439187724,3.55491471,17435.0,17434.0,0.01398036]
[1673439188372,3.84635447,17435.0,17434.0,0.01398036]
[1673439188627,3.55485447,17435.0,17434.0,0.01398036]
[1673439189419,3.14869754,17435.0,17434.0,0.01398036]
[1673439189681,3.7305064,17435.0,17434.0,0.01398036]
[1673439190932,3.14869754,17435.0,17434.0,0.01398036]
[1673439191442,4.24981139,17435.0,17434.0,0.00726871]
[1673439191748,4.32713035,17435.0,17434.0,0.00726871]
[1673439193225,4.76538631,17435.0,17434.0,0.00726871]
[1673439193488,4.5732381,17435.0,17434.0,0.00726871]
[1673439193743,4.8732381,17435.0,17434.0,0.00726871]
[1673439194526,4.5732381,17435.0,17434.0,0.00726871]
[1673439195512,4.13498214,17435.0,17434.0,0.00726871]
[1673439196961,3.74339276,17435.0,17434.0,0.00726871]
[1673439197411,4.44742153,17435.0,17434.0,0.00726871]
[1673439197635,4.27248777,17435.0,17434.0,0.00726871]
[1673439197853,3.97248777,17435.0,17434.0,0.00726871]
[1673439199261,4.27248777,17435.0,17434.0,0.00726871]
[1673439199464,3.97248777,17435.0,17434.0,0.00726871]
[1673439200861,3.44339276,17435.0,17434.0,0.00726871]
[1673439201380,3.74339276,17435.0,17434.0,0.00726871]
[1673439201629,3.44339276,17435.0,17434.0,0.00726871]
[1673439201903,4.17170875,17435.0,17434.0,0.00726871]
[1673439203717,3.88491875,17435.0,17434.0,0.00726871]
[1673439203979,3.29097108,17435.0,17434.0,0.00726871]
[1673439208127,3.28247108,17435.0,17434.0,0.00726871]
[1673439208386,2.7671736,17435.0,17434.0,0.00726871]
[1673439209150,3.28247108,17435.0,17434.0,0.00726871]
[1673439209740,2.7671736,17435.0,17434.0,0.00726871]
[1673439210462,3.28247108,17435.0,17434.0,0.00726871]
[1673439210697,2.7671736,17435.0,17434.0,0.00726871]
[1673439211007,3.28247108,17435.0,17434.0,0.00726871]
[1673439211477,2.7671736,17435.0,17434.0,0.00726871]
[1673439212498,2.4081696,17435.0,17434.0,0.00726871]
[1673439212749,2.8376553,17435.0,17434.0,0.00726871]
[1673439213006,2.7671736,17435.0,17434.0,0.00726871]
[1673439213524,3.19658146,17435.0,17434.0,0.00726871]
[1673439214074,2.7671736,17435.0,17434.0,0.00726871]
[1673439214863,2.7671736,17435.0,17434.0,0.00716914]
[1673439215100,3.28247108,17435.0,17434.0,0.00716914]
[1673439216364,2.7671736,17435.0,17434.0,0.00716914]
[1673439220453,3.20542956,17435.0,17434.0,0.00716914]
[1673439223009,3.04182956,17435.0,17434.0,0.00716914]
[1673439226782,2.6035736,17435.0,17434.0,0.00716914]
[1673439229824,2.60345646,17435.0,17434.0,0.00716914]
[1673439231090,3.03266441,17435.0,17434.0,0.00716914]
[1673439233124,3.19686441,17435.0,17434.0,0.00716914]
[1673439234211,2.76765646,17435.0,17434.0,0.00716914]
[1673439235258,3.19685853,17435.0,17434.0,0.00716914]
[1673439235730,2.76765646,17435.0,17434.0,0.00716914]
[1673439238359,3.19688192,17435.0,17434.0,0.00716914]
[1673439238874,2.76765646,17435.0,17434.0,0.00716914]
[1673439239144,3.19688613,17435.0,17434.0,0.00716914]
[1673439239434,3.54028827,17435.0,17434.0,0.00716914]
[1673439239711,3.19688613,17435.0,17434.0,0.00716914]
[1673439242882,3.18132301,17435.0,17434.0,0.00716914]
[1673439243138,3.18131859,17435.0,17434.0,0.00716914]
[1673439243663,2.83788213,17435.0,17434.0,0.00716914]
[1673439243927,3.19688613,17435.0,17434.0,0.00716914]
[1673439246392,3.54029979,17435.0,17434.0,0.00716914]
[1673439246644,3.19688613,17435.0,17434.0,0.00716914]
[1673439246895,3.54029872,17435.0,17434.0,0.00716914]
[1673439247149,3.19688613,17435.0,17434.0,0.00716914]
[1673439248426,2.46857014,17435.0,17434.0,0.70126602]
[1673439248682,2.2778829,17435.0,17434.0,0.70126602]
[1673439249204,1.84865323,17435.0,17434.0,0.70126602]
[1673439250508,1.27509523,17435.0,17434.0,0.70126602]
[1673439252059,1.27509523,17435.0,17434.0,0.00716914]
[1673439252598,1.10334599,17435.0,17434.0,0.00716914]
[1673439253373,1.4467598,17435.0,17434.0,0.00716914]
[1673439253631,1.10333263,17435.0,17434.0,0.00716914]
[1673439255203,1.10333263,17435.0,17434.0,0.00705958]
[1673439255719,1.4467598,17435.0,17434.0,0.00705958]
[1673439256300,1.10333263,17435.0,17434.0,0.00705958]
[1673439256756,1.4467598,17435.0,17434.0,0.00705958]
[1673439257008,1.27509523,17435.0,17434.0,0.00705958]
[1673439257273,1.44673693,17435.0,17434.0,0.00705958]
[1673439257540,1.27509523,17435.0,17434.0,0.00705958]
[1673439258328,1.44673727,17435.0,17434.0,0.00705958]
[1673439258588,2.32071625,17435.0,17434.0,0.00705958]
[1673439258906,2.42214021,17435.0,17434.0,0.00705958]
[1673439259110,2.685745,17435.0,17434.0,0.00705958]
[1673439259851,2.326741,17435.0,17434.0,0.00705958]
[1673439260650,2.685745,17435.0,17434.0,0.00705958]
[1673439261161,2.326741,17435.0,17434.0,0.00705958]